[Event "Early-Titled-Tuesday-Blitz-October-24-2023"]
[Site "Chess.com"]
[Date "2023.10.24"]
[Round "3"]
[White "IMRosen"]
[Black "Chernov_Mikhail"]
[Result "1-0"]
[WhiteElo "2569"]
[BlackElo "2379"]
[TimeControl "180+1"]
[EndTime "8:25:45 PDT"]
[Termination "IMRosen won by checkmate"]

1. e4 {[%clk 0:03:00.9]} 1... c5 {[%clk 0:02:43.2]} 2. Nc3 {[%clk 0:02:59.5]}
2... Nc6 {[%clk 0:02:43.4]} 3. Bb5 {[%clk 0:02:59.1]} 3... Nd4 {[%clk 0:02:43]}
4. Nf3 {[%clk 0:02:58.2]} 4... g6 {[%clk 0:02:36.9]} 5. Bc4 {[%clk 0:02:57.3]}
5... Bg7 {[%clk 0:02:35.4]} 6. Nxd4 {[%clk 0:02:57.1]} 6... cxd4 {[%clk
0:02:36.3]} 7. Qf3 {[%clk 0:02:56.9]} 7... Nh6 {[%clk 0:02:25.9]} 8. Ne2 {[%clk
0:02:55.8]} 8... O-O {[%clk 0:02:25.2]} 9. d3 {[%clk 0:02:48.8]} 9... Qb6 {[%clk
0:01:52.3]} 10. Bb3 {[%clk 0:02:34.2]} 10... d6 {[%clk 0:01:48.9]} 11. Qg3
{[%clk 0:02:16.5]} 11... a5 {[%clk 0:01:25.2]} 12. h4 {[%clk 0:01:58.6]} 12...
a4 {[%clk 0:01:23]} 13. Bc4 {[%clk 0:01:58.9]} 13... Ng4 {[%clk 0:01:11.6]} 14.
h5 {[%clk 0:01:55]} 14... Ra5 {[%clk 0:00:38.6]} 15. hxg6 {[%clk 0:01:50.3]}
15... hxg6 {[%clk 0:00:39.5]} 16. f3 {[%clk 0:01:18.1]} 16... Ne5 {[%clk
0:00:15]} 17. Qh4 {[%clk 0:01:18.1]} 17... Rd8 {[%clk 0:00:13.1]} 18. Qh7+
{[%clk 0:01:16.5]} 18... Kf8 {[%clk 0:00:13.3]} 19. Bh6 {[%clk 0:01:11.8]} 19...
Qxb2 {[%clk 0:00:06.5]} 20. Qh8# {[%clk 0:01:11.3]} 1-0

[Event "Early-Titled-Tuesday-Blitz-October-24-2023"]
[Site "Chess.com"]
[Date "2023.10.24"]
[Round "3"]
[White "Josgar05"]
[Black "Karttunen"]
[Result "0-1"]
[WhiteElo "2360"]
[BlackElo "2609"]
[TimeControl "180+1"]
[EndTime "8:25:47 PDT"]
[Termination "Karttunen won by checkmate"]

1. Nf3 {[%clk 0:03:00.9]} 1... Nf6 {[%clk 0:02:57.9]} 2. b3 {[%clk 0:03:01.3]}
2... d5 {[%clk 0:02:57.6]} 3. Bb2 {[%clk 0:03:01.7]} 3... c5 {[%clk 0:02:57.6]}
4. g3 {[%clk 0:03:01.3]} 4... Nc6 {[%clk 0:02:57.7]} 5. Bg2 {[%clk 0:03:01.8]}
5... d4 {[%clk 0:02:53.1]} 6. O-O {[%clk 0:02:55.7]} 6... Bg4 {[%clk 0:02:52.1]}
7. h3 {[%clk 0:02:54.2]} 7... Bxf3 {[%clk 0:02:49.7]} 8. Bxf3 {[%clk 0:02:55.1]}
8... Qd7 {[%clk 0:02:47]} 9. Bg2 {[%clk 0:02:54.3]} 9... e5 {[%clk 0:02:45.4]}
10. d3 {[%clk 0:02:54.4]} 10... Bd6 {[%clk 0:02:44.7]} 11. c3 {[%clk 0:02:54.5]}
11... O-O {[%clk 0:02:44.4]} 12. cxd4 {[%clk 0:02:54.6]} 12... cxd4 {[%clk
0:02:44.2]} 13. Nd2 {[%clk 0:02:55.1]} 13... Rac8 {[%clk 0:02:39.6]} 14. Rc1
{[%clk 0:02:53]} 14... b5 {[%clk 0:02:38.7]} 15. Re1 {[%clk 0:02:44.4]} 15...
Nb4 {[%clk 0:02:38.7]} 16. a3 {[%clk 0:02:43.7]} 16... Na2 {[%clk 0:02:33.7]}
17. Rxc8 {[%clk 0:02:40.5]} 17... Rxc8 {[%clk 0:02:34.6]} 18. b4 {[%clk
0:02:36.6]} 18... Nc3 {[%clk 0:02:33.6]} 19. Qb3 {[%clk 0:02:36.7]} 19... h5
{[%clk 0:02:03.3]} 20. h4 {[%clk 0:02:34.6]} 20... Qg4 {[%clk 0:01:48.7]} 21.
Bxc3 {[%clk 0:02:30.2]} 21... dxc3 {[%clk 0:01:40.3]} 22. Ne4 {[%clk 0:02:21.6]}
22... Nxe4 {[%clk 0:01:34.5]} 23. Bxe4 {[%clk 0:02:22.5]} 23... c2 {[%clk
0:01:34]} 24. Qb2 {[%clk 0:02:04.9]} 24... f5 {[%clk 0:01:29.9]} 25. Bf3 {[%clk
0:01:59.5]} 25... Qg6 {[%clk 0:01:29.7]} 26. Rc1 {[%clk 0:01:43.4]} 26... e4
{[%clk 0:01:29.9]} 27. dxe4 {[%clk 0:01:43.6]} 27... fxe4 {[%clk 0:01:30.4]} 28.
Rxc2 {[%clk 0:01:44]} 28... Rf8 {[%clk 0:01:12.8]} 29. Bg2 {[%clk 0:01:39.7]}
29... e3 {[%clk 0:01:00.1]} 30. Rc6 {[%clk 0:01:12.5]} 30... exf2+ {[%clk
0:00:52.7]} 31. Kf1 {[%clk 0:01:11.4]} 31... Qxg3 {[%clk 0:00:49.2]} 32. Qd2
{[%clk 0:01:00.5]} 32... Qxg2+ {[%clk 0:00:48.8]} 33. Kxg2 {[%clk 0:00:56.1]}
33... f1=Q# {[%clk 0:00:48.8]} 0-1

[Event "Early-Titled-Tuesday-Blitz-October-24-2023"]
[Site "Chess.com"]
[Date "2023.10.24"]
[Round "3"]
[White "SnekkerAndersen"]
[Black "Millerkallpa"]
[Result "1-0"]
[WhiteElo "2520"]
[BlackElo "2052"]
[TimeControl "180+1"]
[EndTime "8:25:48 PDT"]
[Termination "SnekkerAndersen won by checkmate"]

1. d4 {[%clk 0:02:52.6]} 1... d5 {[%clk 0:02:57.4]} 2. c4 {[%clk 0:02:38.4]}
2... e6 {[%clk 0:02:56.7]} 3. Nc3 {[%clk 0:02:34]} 3... Nf6 {[%clk 0:02:56.1]}
4. cxd5 {[%clk 0:02:26.5]} 4... exd5 {[%clk 0:02:57]} 5. Bg5 {[%clk 0:02:25.9]}
5... Be7 {[%clk 0:02:55]} 6. e3 {[%clk 0:02:21.9]} 6... O-O {[%clk 0:02:51.5]}
7. Qc2 {[%clk 0:02:21.4]} 7... Nbd7 {[%clk 0:02:50.1]} 8. Bd3 {[%clk 0:02:16.6]}
8... Re8 {[%clk 0:02:45]} 9. O-O-O {[%clk 0:02:15.2]} 9... c6 {[%clk 0:02:38.4]}
10. Kb1 {[%clk 0:02:10.2]} 10... b5 {[%clk 0:02:37.7]} 11. Nf3 {[%clk
0:01:56.4]} 11... b4 {[%clk 0:02:37.1]} 12. Ne2 {[%clk 0:01:55.3]} 12... Ne4
{[%clk 0:02:28.3]} 13. Bxe7 {[%clk 0:01:53]} 13... Qxe7 {[%clk 0:02:27.1]} 14.
Ng3 {[%clk 0:01:51.8]} 14... c5 {[%clk 0:02:07.9]} 15. dxc5 {[%clk 0:01:45.8]}
15... Ndxc5 {[%clk 0:02:08.8]} 16. Bb5 {[%clk 0:01:45.8]} 16... Rd8 {[%clk
0:02:04.2]} 17. Nd4 {[%clk 0:01:45.5]} 17... Bb7 {[%clk 0:01:49]} 18. f3 {[%clk
0:01:32]} 18... Nxg3 {[%clk 0:01:28.7]} 19. hxg3 {[%clk 0:01:32.9]} 19... g6
{[%clk 0:01:28.6]} 20. g4 {[%clk 0:01:12.4]} 20... Rac8 {[%clk 0:01:25.2]} 21.
g3 {[%clk 0:01:08.7]} 21... a6 {[%clk 0:01:11.5]} 22. Qh2 {[%clk 0:01:06.8]}
22... h5 {[%clk 0:00:56]} 23. gxh5 {[%clk 0:01:04.5]} 23... axb5 {[%clk
0:00:30.1]} 24. hxg6 {[%clk 0:01:00.6]} 24... fxg6 {[%clk 0:00:31]} 25. Qh8+
{[%clk 0:00:59.3]} 25... Kf7 {[%clk 0:00:31]} 26. Rh7# {[%clk 0:01:00.2]} 1-0

[Event "Early-Titled-Tuesday-Blitz-October-24-2023"]
[Site "Chess.com"]
[Date "2023.10.24"]
[Round "3"]
[White "Elsa167"]
[Black "LoydBlankenship"]
[Result "1-0"]
[WhiteElo "2863"]
[BlackElo "2651"]
[TimeControl "180+1"]
[EndTime "8:25:50 PDT"]
[Termination "Elsa167 won by resignation"]

1. d4 {[%clk 0:03:00.9]} 1... Nf6 {[%clk 0:02:57.8]} 2. c4 {[%clk 0:02:57.5]}
2... g6 {[%clk 0:02:57.7]} 3. Nc3 {[%clk 0:02:57.5]} 3... Bg7 {[%clk 0:02:58.3]}
4. e4 {[%clk 0:02:57.9]} 4... O-O {[%clk 0:02:58.3]} 5. Be3 {[%clk 0:02:57.5]}
5... d6 {[%clk 0:02:55.4]} 6. h3 {[%clk 0:02:57.8]} 6... c5 {[%clk 0:02:53.8]}
7. Nf3 {[%clk 0:02:57.5]} 7... cxd4 {[%clk 0:02:52.7]} 8. Nxd4 {[%clk
0:02:58.4]} 8... Nc6 {[%clk 0:02:52.9]} 9. Be2 {[%clk 0:02:58.8]} 9... Bd7
{[%clk 0:02:52.4]} 10. O-O {[%clk 0:02:58.5]} 10... Rc8 {[%clk 0:02:46.6]} 11.
Rc1 {[%clk 0:02:56.2]} 11... Qa5 {[%clk 0:02:44.4]} 12. b3 {[%clk 0:02:46.4]}
12... h5 {[%clk 0:02:12.9]} 13. Kh1 {[%clk 0:02:30]} 13... Kh7 {[%clk 0:02:11]}
14. f4 {[%clk 0:02:28.4]} 14... Nxd4 {[%clk 0:02:04.1]} 15. Bxd4 {[%clk
0:02:29.3]} 15... Bc6 {[%clk 0:02:04.5]} 16. Qd3 {[%clk 0:01:51.5]} 16... e5
{[%clk 0:01:24]} 17. Be3 {[%clk 0:01:43.2]} 17... exf4 {[%clk 0:01:18.3]} 18.
Rxf4 {[%clk 0:01:42.6]} 18... Rfe8 {[%clk 0:01:18.3]} 19. Rcf1 {[%clk
0:01:39.8]} 19... Qd8 {[%clk 0:00:58.6]} 20. Bd4 {[%clk 0:01:29.3]} 20... Re6
{[%clk 0:00:56]} 21. Nd5 {[%clk 0:00:59.4]} 21... Ng4 {[%clk 0:00:31.3]} 1-0

[Event "Early-Titled-Tuesday-Blitz-October-24-2023"]
[Site "Chess.com"]
[Date "2023.10.24"]
[Round "3"]
[White "c63_amg"]
[Black "DavidLana1987"]
[Result "1-0"]
[WhiteElo "2817"]
[BlackElo "2589"]
[TimeControl "180+1"]
[EndTime "8:25:57 PDT"]
[Termination "c63_amg won by checkmate"]

1. e4 {[%clk 0:02:54]} 1... e6 {[%clk 0:02:52.7]} 2. d4 {[%clk 0:02:53.4]} 2...
d5 {[%clk 0:02:53.2]} 3. Nc3 {[%clk 0:02:54.3]} 3... dxe4 {[%clk 0:02:52]} 4.
Nxe4 {[%clk 0:02:53.9]} 4... Bd7 {[%clk 0:02:52.8]} 5. Nf3 {[%clk 0:02:53.9]}
5... Bc6 {[%clk 0:02:53.4]} 6. Bd3 {[%clk 0:02:54.3]} 6... Nd7 {[%clk
0:02:52.8]} 7. Qe2 {[%clk 0:02:52.3]} 7... Bxe4 {[%clk 0:02:53.2]} 8. Bxe4
{[%clk 0:02:52.3]} 8... c6 {[%clk 0:02:54.1]} 9. c3 {[%clk 0:02:52.6]} 9... Ngf6
{[%clk 0:02:54.7]} 10. Bc2 {[%clk 0:02:52.7]} 10... Bd6 {[%clk 0:02:55.2]} 11.
O-O {[%clk 0:02:52.7]} 11... Qe7 {[%clk 0:02:53.1]} 12. Ne5 {[%clk 0:02:52.1]}
12... O-O {[%clk 0:02:52]} 13. Bg5 {[%clk 0:02:50.3]} 13... h6 {[%clk
0:02:51.8]} 14. Bh4 {[%clk 0:02:49.6]} 14... c5 {[%clk 0:02:50.5]} 15. Nxd7
{[%clk 0:02:25.7]} 15... Qxd7 {[%clk 0:02:49.8]} 16. Rad1 {[%clk 0:02:16.4]}
16... Qc7 {[%clk 0:02:29.6]} 17. Bxf6 {[%clk 0:02:05]} 17... gxf6 {[%clk
0:02:29.5]} 18. Qh5 {[%clk 0:01:36]} 18... Kg7 {[%clk 0:02:25.5]} 19. d5 {[%clk
0:01:34.7]} 19... f5 {[%clk 0:02:01.6]} 20. Rfe1 {[%clk 0:01:24.8]} 20... Rfe8
{[%clk 0:01:46.7]} 21. dxe6 {[%clk 0:01:08.4]} 21... fxe6 {[%clk 0:01:46.9]} 22.
Bb3 {[%clk 0:01:08.8]} 22... c4 {[%clk 0:01:35.5]} 23. Bxc4 {[%clk 0:01:09.3]}
23... Qxc4 {[%clk 0:01:31.6]} 24. Rxd6 {[%clk 0:01:08.2]} 24... Re7 {[%clk
0:01:23.7]} 25. h3 {[%clk 0:00:55.4]} 25... Rf8 {[%clk 0:01:18.3]} 26. Re3
{[%clk 0:00:52]} 26... f4 {[%clk 0:01:09.9]} 27. Qg4+ {[%clk 0:00:51.4]} 27...
Kf7 {[%clk 0:01:10.2]} 28. b3 {[%clk 0:00:44.1]} 28... Qc5 {[%clk 0:00:51.8]}
29. Rexe6 {[%clk 0:00:43.6]} 29... Rxe6 {[%clk 0:00:46.8]} 30. Qxe6+ {[%clk
0:00:43.5]} 30... Kg7 {[%clk 0:00:47.2]} 31. Rd7+ {[%clk 0:00:43.9]} 31... Kh8
{[%clk 0:00:46.1]} 32. Qxh6+ {[%clk 0:00:44.1]} 32... Kg8 {[%clk 0:00:46.6]} 33.
Qg7# {[%clk 0:00:44.6]} 1-0

[Event "Early-Titled-Tuesday-Blitz-October-24-2023"]
[Site "Chess.com"]
[Date "2023.10.24"]
[Round "3"]
[White "meoluoi91"]
[Black "viktorgen2021"]
[Result "1-0"]
[WhiteElo "2599"]
[BlackElo "2426"]
[TimeControl "180+1"]
[EndTime "8:25:58 PDT"]
[Termination "meoluoi91 won by resignation"]

1. d4 {[%clk 0:03:00.9]} 1... Nf6 {[%clk 0:02:57.8]} 2. c4 {[%clk 0:02:58.9]}
2... g6 {[%clk 0:02:55.6]} 3. g3 {[%clk 0:02:57.7]} 3... Bg7 {[%clk 0:02:40.9]}
4. Bg2 {[%clk 0:02:57.3]} 4... O-O {[%clk 0:02:41.5]} 5. Nc3 {[%clk 0:02:57.3]}
5... d6 {[%clk 0:02:42.2]} 6. e4 {[%clk 0:02:56.9]} 6... Nc6 {[%clk 0:02:38]} 7.
Nge2 {[%clk 0:02:55.4]} 7... e5 {[%clk 0:02:36.3]} 8. Be3 {[%clk 0:02:41.9]}
8... Ng4 {[%clk 0:02:31.6]} 9. Bg5 {[%clk 0:02:40.7]} 9... Qxg5 {[%clk
0:02:29.3]} 10. d5 {[%clk 0:02:30.5]} 10... Nd4 {[%clk 0:02:25.1]} 11. Nxd4
{[%clk 0:02:29.4]} 11... exd4 {[%clk 0:02:26]} 12. Nb5 {[%clk 0:02:30.3]} 12...
Qe7 {[%clk 0:02:19.2]} 13. O-O {[%clk 0:02:28.2]} 13... d3 {[%clk 0:02:13.8]}
14. Rb1 {[%clk 0:02:24.3]} 14... a6 {[%clk 0:01:58.9]} 15. Na3 {[%clk
0:02:23.9]} 15... Ne5 {[%clk 0:01:52.4]} 16. h3 {[%clk 0:02:23.1]} 16... f5
{[%clk 0:01:48.5]} 17. f4 {[%clk 0:02:20.6]} 17... Nf7 {[%clk 0:01:37.5]} 18.
Qxd3 {[%clk 0:02:17.6]} 18... fxe4 {[%clk 0:01:36.5]} 19. Bxe4 {[%clk
0:02:17.8]} 19... Bxh3 {[%clk 0:01:35]} 20. Rfe1 {[%clk 0:02:18.2]} 20... Qd7
{[%clk 0:01:33.9]} 21. Nc2 {[%clk 0:02:16.8]} 21... Nh6 {[%clk 0:01:33.4]} 22.
Nd4 {[%clk 0:02:12.7]} 22... Rae8 {[%clk 0:01:30.2]} 23. Ne6 {[%clk 0:02:12.9]}
23... Rf6 {[%clk 0:01:19.2]} 24. Re2 {[%clk 0:01:48.3]} 24... Kh8 {[%clk
0:01:15]} 25. Nxg7 {[%clk 0:01:45]} 25... Kxg7 {[%clk 0:01:15.9]} 26. Rbe1
{[%clk 0:01:44.9]} 26... Rff8 {[%clk 0:01:13.8]} 27. Qd4+ {[%clk 0:01:42.8]}
27... Kg8 {[%clk 0:01:12.4]} 28. c5 {[%clk 0:01:43.1]} 28... Qg4 {[%clk
0:01:09.1]} 29. Kh2 {[%clk 0:01:40.9]} 29... Qh5 {[%clk 0:01:08.1]} 30. Kg1
{[%clk 0:01:39.2]} 30... Nf5 {[%clk 0:01:04.2]} 31. Qc3 {[%clk 0:01:33.8]} 31...
dxc5 {[%clk 0:00:45.7]} 32. Bf3 {[%clk 0:01:33.5]} 32... Bg4 {[%clk 0:00:38.8]}
33. Rxe8 {[%clk 0:01:26.1]} 33... Nd4 {[%clk 0:00:27.8]} 34. Rxf8+ {[%clk
0:01:22.9]} 34... Kxf8 {[%clk 0:00:24.6]} 35. Qxc5+ {[%clk 0:01:23.4]} 35... Kg8
{[%clk 0:00:24.8]} 36. Re8+ {[%clk 0:01:22.8]} 1-0

[Event "Early-Titled-Tuesday-Blitz-October-24-2023"]
[Site "Chess.com"]
[Date "2023.10.24"]
[Round "3"]
[White "ChessBliss09"]
[Black "carloseduar100"]
[Result "0-1"]
[WhiteElo "2025"]
[BlackElo "2326"]
[TimeControl "180+1"]
[EndTime "8:25:59 PDT"]
[Termination "carloseduar100 won on time"]

1. d4 {[%clk 0:03:00]} 1... d5 {[%clk 0:02:59.6]} 2. c4 {[%clk 0:02:59.7]} 2...
e5 {[%clk 0:02:59.7]} 3. dxe5 {[%clk 0:02:58.8]} 3... d4 {[%clk 0:02:59.9]} 4.
Nf3 {[%clk 0:02:57.9]} 4... Nc6 {[%clk 0:02:59.2]} 5. Bf4 {[%clk 0:02:55.1]}
5... Nge7 {[%clk 0:02:57.8]} 6. a3 {[%clk 0:02:44.2]} 6... Ng6 {[%clk 0:02:56]}
7. Bg5 {[%clk 0:02:43.9]} 7... Be7 {[%clk 0:02:55.8]} 8. Bxe7 {[%clk 0:02:43.5]}
8... Qxe7 {[%clk 0:02:56.1]} 9. Nxd4 {[%clk 0:02:36.2]} 9... Ncxe5 {[%clk
0:02:41.7]} 10. e3 {[%clk 0:02:34.4]} 10... Bd7 {[%clk 0:02:35.1]} 11. Be2
{[%clk 0:02:29.4]} 11... O-O-O {[%clk 0:02:34.1]} 12. Qc2 {[%clk 0:02:25.9]}
12... h5 {[%clk 0:02:29.5]} 13. b4 {[%clk 0:02:16.7]} 13... Nh4 {[%clk
0:02:24.5]} 14. g3 {[%clk 0:02:01.7]} 14... Ng2+ {[%clk 0:02:11.7]} 15. Kd1
{[%clk 0:01:06.2]} 15... h4 {[%clk 0:02:04.8]} 16. Rg1 {[%clk 0:00:43.9]} 16...
h3 {[%clk 0:01:31]} 17. Nd2 {[%clk 0:00:42.9]} 17... Ng4 {[%clk 0:01:27.4]} 18.
Bxg4 {[%clk 0:00:16]} 18... Bxg4+ {[%clk 0:01:28.3]} 19. Kc1 {[%clk 0:00:16.3]}
19... Nxe3 {[%clk 0:01:28.7]} 20. fxe3 {[%clk 0:00:15.1]} 20... Qxe3 {[%clk
0:01:29.6]} 21. Rf1 {[%clk 0:00:05.9]} 21... Rxd4 {[%clk 0:01:27]} 22. Kb2
{[%clk 0:00:02.8]} 22... Rxd2 {[%clk 0:01:24.7]} 23. Rae1 {[%clk 0:00:01.2]}
23... Rxc2+ {[%clk 0:01:24.4]} 24. Kxc2 {[%clk 0:00:02.1]} 24... Qd4 {[%clk
0:01:19.8]} 25. Kb3 {[%clk 0:00:01.2]} 25... Qd3+ {[%clk 0:01:18.4]} 0-1

[Event "Early-Titled-Tuesday-Blitz-October-24-2023"]
[Site "Chess.com"]
[Date "2023.10.24"]
[Round "3"]
[White "Aygehovit1992"]
[Black "K_A_S_T_O_R"]
[Result "0-1"]
[WhiteElo "2657"]
[BlackElo "2878"]
[TimeControl "180+1"]
[EndTime "8:26:07 PDT"]
[Termination "K_A_S_T_O_R won on time"]

1. e4 {[%clk 0:03:00.3]} 1... c5 {[%clk 0:02:59.3]} 2. Nf3 {[%clk 0:02:59.2]}
2... d6 {[%clk 0:02:59.6]} 3. d4 {[%clk 0:02:58.9]} 3... cxd4 {[%clk 0:02:59.9]}
4. Nxd4 {[%clk 0:02:59.8]} 4... Nf6 {[%clk 0:02:59.8]} 5. Nc3 {[%clk 0:02:59.7]}
5... a6 {[%clk 0:03:00.2]} 6. h3 {[%clk 0:02:56.8]} 6... e6 {[%clk 0:02:57.9]}
7. g4 {[%clk 0:02:53.9]} 7... h6 {[%clk 0:02:57.4]} 8. Bg2 {[%clk 0:02:43.5]}
8... Be7 {[%clk 0:02:57.4]} 9. Be3 {[%clk 0:02:41]} 9... Nc6 {[%clk 0:02:57.3]}
10. Nxc6 {[%clk 0:02:37.6]} 10... bxc6 {[%clk 0:02:57.1]} 11. e5 {[%clk
0:02:37.8]} 11... Nd5 {[%clk 0:02:55.3]} 12. exd6 {[%clk 0:02:37.5]} 12... Bxd6
{[%clk 0:02:55.4]} 13. Ne4 {[%clk 0:02:32.9]} 13... Be7 {[%clk 0:02:50.1]} 14.
Qd4 {[%clk 0:02:07.7]} 14... O-O {[%clk 0:02:37.5]} 15. a3 {[%clk 0:01:22.3]}
15... Rb8 {[%clk 0:02:26.7]} 16. b4 {[%clk 0:00:59.9]} 16... f5 {[%clk
0:02:12.3]} 17. O-O-O {[%clk 0:00:37.1]} 17... fxe4 {[%clk 0:02:08.7]} 18. Bxe4
{[%clk 0:00:31]} 18... Qb6 {[%clk 0:02:00.2]} 19. Qxb6 {[%clk 0:00:30.5]} 19...
Nxb6 {[%clk 0:01:59.5]} 20. Bxc6 {[%clk 0:00:30.9]} 20... a5 {[%clk 0:01:51]}
21. Rd4 {[%clk 0:00:19.5]} 21... axb4 {[%clk 0:01:49.8]} 22. axb4 {[%clk
0:00:20.4]} 22... Nd5 {[%clk 0:01:45]} 23. Bxd5 {[%clk 0:00:20.1]} 23... exd5
{[%clk 0:01:45.4]} 24. Rhd1 {[%clk 0:00:15.2]} 24... Bxb4 {[%clk 0:01:43]} 25.
Rxd5 {[%clk 0:00:14.6]} 25... Ba3+ {[%clk 0:01:39.3]} 26. Kd2 {[%clk 0:00:14.5]}
26... Be6 {[%clk 0:01:38.9]} 27. Rd3 {[%clk 0:00:14.2]} 27... Bb4+ {[%clk
0:01:36.4]} 28. Kc1 {[%clk 0:00:14.1]} 28... Rfc8 {[%clk 0:01:31.1]} 29. Bf4
{[%clk 0:00:12.2]} 29... Ra8 {[%clk 0:01:30.4]} 30. Bd6 {[%clk 0:00:10.3]} 30...
Bc3 {[%clk 0:01:29.2]} 31. Rxc3 {[%clk 0:00:03.9]} 31... Rxc3 {[%clk 0:01:28.5]}
0-1

[Event "Early-Titled-Tuesday-Blitz-October-24-2023"]
[Site "Chess.com"]
[Date "2023.10.24"]
[Round "3"]
[White "twitchTriniCupid"]
[Black "Gyulamiryan-koryun"]
[Result "1-0"]
[WhiteElo "2314"]
[BlackElo "1944"]
[TimeControl "180+1"]
[EndTime "8:26:19 PDT"]
[Termination "twitchTriniCupid won by resignation"]

1. d4 {[%clk 0:03:00.2]} 1... Nf6 {[%clk 0:02:50.4]} 2. Nf3 {[%clk 0:02:55.5]}
2... d5 {[%clk 0:02:49.8]} 3. Bf4 {[%clk 0:02:47.7]} 3... e6 {[%clk 0:02:50.1]}
4. e3 {[%clk 0:02:47.2]} 4... c5 {[%clk 0:02:50]} 5. c3 {[%clk 0:02:47]} 5...
Nc6 {[%clk 0:02:49.9]} 6. Nbd2 {[%clk 0:02:46.6]} 6... Bd6 {[%clk 0:02:50.3]} 7.
Bg3 {[%clk 0:02:43.6]} 7... O-O {[%clk 0:02:42.5]} 8. Bd3 {[%clk 0:02:43.5]}
8... c4 {[%clk 0:02:37]} 9. Bc2 {[%clk 0:02:41.9]} 9... b5 {[%clk 0:02:36.7]}
10. a3 {[%clk 0:02:38.4]} 10... a5 {[%clk 0:02:33.9]} 11. O-O {[%clk 0:02:31.7]}
11... Bxg3 {[%clk 0:02:32.4]} 12. hxg3 {[%clk 0:02:31.1]} 12... Rb8 {[%clk
0:02:33.3]} 13. e4 {[%clk 0:02:30.5]} 13... dxe4 {[%clk 0:02:10.9]} 14. Nxe4
{[%clk 0:02:28.4]} 14... Bb7 {[%clk 0:02:11]} 15. Qe2 {[%clk 0:02:18.2]} 15...
h6 {[%clk 0:02:04.5]} 16. Rfe1 {[%clk 0:02:14.6]} 16... Ne7 {[%clk 0:01:48.7]}
17. Nxf6+ {[%clk 0:02:09.4]} 17... gxf6 {[%clk 0:01:48.9]} 18. Nd2 {[%clk
0:01:55.9]} 18... Qd5 {[%clk 0:01:37]} 19. Ne4 {[%clk 0:01:28.6]} 19... Kg7
{[%clk 0:01:31.2]} 20. f3 {[%clk 0:01:07.9]} 20... Ng6 {[%clk 0:01:27.9]} 21.
Kf2 {[%clk 0:01:04.3]} 21... b4 {[%clk 0:01:19.6]} 22. axb4 {[%clk 0:01:03]}
22... axb4 {[%clk 0:01:16.1]} 23. Nc5 {[%clk 0:00:58.1]} 23... bxc3 {[%clk
0:00:56.2]} 24. bxc3 {[%clk 0:00:59]} 24... Rfc8 {[%clk 0:00:45.8]} 25. Be4
{[%clk 0:00:57.8]} 1-0

[Event "Early-Titled-Tuesday-Blitz-October-24-2023"]
[Site "Chess.com"]
[Date "2023.10.24"]
[Round "3"]
[White "DKmirl"]
[Black "Fandorine"]
[Result "0-1"]
[WhiteElo "2289"]
[BlackElo "2917"]
[TimeControl "180+1"]
[EndTime "8:26:21 PDT"]
[Termination "Fandorine won on time"]

1. d4 {[%clk 0:03:00.9]} 1... Nf6 {[%clk 0:02:58.9]} 2. Nf3 {[%clk 0:03:00.7]}
2... g6 {[%clk 0:02:59.3]} 3. g3 {[%clk 0:03:01.2]} 3... Bg7 {[%clk 0:02:59.3]}
4. Bg2 {[%clk 0:03:01.9]} 4... O-O {[%clk 0:02:59.9]} 5. O-O {[%clk 0:03:02.6]}
5... d5 {[%clk 0:02:59.7]} 6. c4 {[%clk 0:02:59.7]} 6... dxc4 {[%clk 0:03:00]}
7. Ne5 {[%clk 0:02:55]} 7... Nc6 {[%clk 0:02:58.8]} 8. Nxc6 {[%clk 0:02:48.7]}
8... bxc6 {[%clk 0:02:59.7]} 9. Bxc6 {[%clk 0:02:49.2]} 9... Bh3 {[%clk
0:02:50.6]} 10. Bxa8 {[%clk 0:02:42.3]} 10... Qxa8 {[%clk 0:02:49.9]} 11. f3
{[%clk 0:02:38.2]} 11... Bxf1 {[%clk 0:02:50.3]} 12. Kxf1 {[%clk 0:02:32.9]}
12... Rd8 {[%clk 0:02:50]} 13. Na3 {[%clk 0:02:06.8]} 13... c5 {[%clk
0:02:41.1]} 14. Nxc4 {[%clk 0:02:01.7]} 14... cxd4 {[%clk 0:02:37.5]} 15. Bg5
{[%clk 0:01:46.2]} 15... d3 {[%clk 0:02:31.5]} 16. Bxf6 {[%clk 0:01:15.1]} 16...
dxe2+ {[%clk 0:02:28.3]} 17. Qxe2 {[%clk 0:01:15.4]} 17... Bxf6 {[%clk
0:02:29.2]} 18. Rd1 {[%clk 0:01:12]} 18... Rc8 {[%clk 0:02:29.6]} 19. b3 {[%clk
0:01:09.5]} 19... Kg7 {[%clk 0:02:27.3]} 20. Qe4 {[%clk 0:01:02.3]} 20... Qb8
{[%clk 0:02:24.3]} 21. Kg2 {[%clk 0:00:46.5]} 21... Qb4 {[%clk 0:02:18.7]} 22.
Qd3 {[%clk 0:00:23]} 22... h5 {[%clk 0:02:14.4]} 23. Qd7 {[%clk 0:00:21.1]}
23... Qb8 {[%clk 0:02:04.6]} 24. Rd2 {[%clk 0:00:14.3]} 24... h4 {[%clk
0:02:02.3]} 25. g4 {[%clk 0:00:09.6]} 25... h3+ {[%clk 0:02:01.6]} 26. Kxh3
{[%clk 0:00:08.7]} 26... Rh8+ {[%clk 0:02:00.6]} 27. Kg2 {[%clk 0:00:07]} 27...
Qxh2+ {[%clk 0:01:56.6]} 28. Kf1 {[%clk 0:00:07.3]} 28... Qh1+ {[%clk
0:01:50.5]} 29. Ke2 {[%clk 0:00:07.7]} 29... Qg2+ {[%clk 0:01:45.5]} 30. Kd3
{[%clk 0:00:06.9]} 30... Qxf3+ {[%clk 0:01:45]} 31. Kc2 {[%clk 0:00:06.9]} 31...
Qc3+ {[%clk 0:01:42.9]} 32. Kd1 {[%clk 0:00:05]} 32... Rh1+ {[%clk 0:01:42]} 33.
Ke2 {[%clk 0:00:05.4]} 33... Rh2+ {[%clk 0:01:41]} 34. Kd1 {[%clk 0:00:05.2]}
34... Qa1+ {[%clk 0:01:40.8]} 35. Kc2 {[%clk 0:00:04.4]} 35... Qxa2+ {[%clk
0:01:41.1]} 36. Kd3 {[%clk 0:00:04.7]} 36... Qxb3+ {[%clk 0:01:41.2]} 37. Ke4
{[%clk 0:00:03.3]} 37... Qb1+ {[%clk 0:01:37.3]} 38. Qd3 {[%clk 0:00:01.6]}
38... Qh1+ {[%clk 0:01:35.1]} 0-1